Cogmind - Beta 14 @@@ ROGUE MODE // 2025.03.08 @ 22:32:10 // Winter2022/Polymind Player: Bbenedict8 Result: Self-destructed Performance ------------- Evolutions (1) 500 Regions Visited (2) 400 Robots Destroyed (7) 35 Value Destroyed (129) 129 Prototype IDs (0) 0 Alien Tech Used (0) 0 Bonus (1022) 1022 TOTAL SCORE: 1976 Bonus ------- Polymind Skill 1022 Cogmind --------- Core Integrity 368/400 Matter 30/125 Energy 49/50 System Corruption 0% Temperature Cool (0) Movement Rolling (80) Location -9/Materials Parts ------- > --- POWER (1) -------- Light Ion Engine > --- PROPULSION (2) --- Wheel > --- UTILITY (1) ------ Medium Matter Pod > --- WEAPON (1) ------- (None) > --- INVENTORY (1) ---- (None) Peak State ------------ > --- POWER ------------ Light Ion Engine > --- PROPULSION ------- Wheel Wheel > --- UTILITY ---------- Improved Terrain Scanner Seismic Detector > --- WEAPON ----------- Mining Laser > --- INVENTORY -------- (None) [Rating: 8] Favorites ----------- Power Light Ion Engine Engine Light Ion Engine Propulsion Wheel Leg Aluminum Leg Wheel Wheel Utility Improved Terrain Scanner Device Improved Terrain Scanner Storage Small Matter Pod Weapon Mining Laser Energy Gun Small Laser Special Weapon Mining Laser Build | -11 -10 -9 ------- Run | Yrd Mat Mat Slots Evolved . | . . . Power . | . . . Propulsion . | . . . Utility . | . . . Weapon . | . . . Parts Attached . | . . . Power . | . . . Engine . | . . . Core . | . . . Reactor . | . . . Propulsion . | . . . Treads . | . . . Leg . | . . . Wheel . | . . . Hover . | . . . Flight . | . . . Utility . | . . . Device . | . . . Storage . | . . . Processor . | . . . Hackware . | . . . Protection . | . . . Artifact . | . . . Weapon . | . . . Energy Gun . | . . . Energy Cannon . | . . . Ballistic Gun . | . . . Ballistic Cannon . | . . . Launcher . | . . . Special Weapon . | . . . Impact Weapon . | . . . Slashing Weapon . | . . . Piercing Weapon . | . . . Special Melee Weapon . | . . . Unidentified Prototypes . | . . . Parts Lost 1 | . . 1 Power . | . . . Propulsion 1 | . . 1 Utility . | . . . Weapon . | . . . Highest Loss Streak 1 | . . 1 To Critical Strikes . | . . . Average Slot Usage (%) 85 | . 87 82 Engine 19 | . 20 18 Leg 17 | . 14 21 Wheel 20 | . 25 13 Device 8 | . 7 10 Storage 10 | . 12 8 Energy Gun 8 | . 7 10 Peak Build Rating 8 | 8 5 5 Average Rating 5 | 6 4 4 On Entrance 3 | . 4 5 Naked Turns 5 | . 3 2 Heaviest Build 7 | 6 7 7 Greatest Support 20 | 20 20 20 Greatest Overweight (x) . | . . . Average Overweight (x) . | . . . Largest Inventory Capacity 1 | 1 1 1 Average Capacity . | . . . Most Carried 1 | . 1 1 Average Carried . | . . . Final Capacity 1 | 1 1 1 Final Carried 1 | . 1 . Class Distribution -------------------- 53% | Worker 44% | Grunt Dominant Class ---------------- Worker | -10/Materials Grunt | -9/Materials Resources | -11 -10 -9 ----------- Run | Yrd Mat Mat Matter Collected . | . . . Remotely . | . . . Salvage Created 143 | 31 112 . Parts 12 | 1 11 . Haulers Intercepted . | . . . Recyclers Shooed . | . . . Parts Field Recycled . | . . . Retrieved Matter . | . . . Parts Self-Destructed . | . . . Prevented . | . . . Kills | -11 -10 -9 ------- Run | Yrd Mat Mat Combat Hostiles Destroyed 5 | . 5 . Guns 5 | . 5 . Classes Destroyed 4 | 1 3 . Worker 1 | . 1 . Recycler 1 | 1 . . Swarmer 2 | . 2 . Grunt 3 | . 3 . Best Kill Streak 6 | 1 6 . Combat Bots Only 5 | . 5 . Max Kills in Single Turn 1 | 1 1 . Gunslinging . | . . . Exploded . | . . . Melee . | . . . Uniques/NPCs Destroyed . | . . . Combat | -11 -10 -9 -------- Run | Yrd Mat Mat Hostile Shots Fired 73 | . 58 15 Missed 17 | . 14 3 Damage Taken 550 | . 418 132 Core 231 | . 199 32 Absorbed by Shields . | . . . Core Remaining (%) 60 | 100 20 . Volleys Fired 29 | 2 27 . Largest 1 | 1 1 . Hottest 100 | 100 40 . Shots Fired 29 | 2 27 . Gun 27 | . 27 . Cannon . | . . . Launcher . | . . . Special 2 | 2 . . Kinetic . | . . . Thermal 29 | 2 27 . Explosive . | . . . Electromagnetic . | . . . Robot Hit Streak 10 | 1 10 . Robot Miss Streak 2 | . 2 . Penetration Max . | . . . Secondary Targets . | . . . Shots Hit Robots 20 | 1 19 . Core Hits 10 | 1 9 . Critical Kills . | . . . Critical Parts Destroyed . | . . . Critical Strikes . | . . . Melee Attacks . | . . . Impact . | . . . Slashing . | . . . Piercing . | . . . Sneak Attacks . | . . . Combat Hostiles . | . . . Follow-up Attacks . | . . . Damage Inflicted 278 | 24 254 . Guns 254 | . 254 . Cannons . | . . . Explosions . | . . . Melee . | . . . Ramming . | . . . Kinetic . | . . . Thermal 278 | 24 254 . Explosive . | . . . Electromagnetic . | . . . Impact . | . . . Slashing . | . . . Piercing . | . . . Highest Corruption . | . . . Average Corruption . | . . . Corruption Purged . | . . . Corruption Blocked . | . . . Overload Shots . | . . . Overflow Damage . | . . . Projectiles . | . . . Explosions . | . . . Melee . | . . . Knockbacks . | . . . Impact . | . . . Kinetic . | . . . Secondary . | . . . Self-Inflicted Damage . | . . . Shots . | . . . Rammed . | . . . Targets Rammed . | . . . Kicked . | . . . Crushed . | . . . Highest Temperature 80 | 80 78 1 Average Temperature 35 | 42 38 1 Received Heat Transfer 186 | . 114 72 Siege Activations . | . . . Robots Corrupted . | . . . Combat Hostiles . | . . . Parts Fried . | . . . Impact Corruptions . | . . . Robots Melted . | . . . Combat Hostiles . | . . . Parts Melted 3 | . 3 . Heat Transferred 600 | 50 550 . Parts Sabotaged . | . . . Parts Stolen . | . . . Parts Stripped . | . . . Power Chain Reactions . | . . . Alert | -11 -10 -9 ------- Run | Yrd Mat Mat Peak Influence 117 | 5 117 64 Initial 49 | . 2 49 Average 19 | 2 22 53 Maximum Alert Level . | . . . Low Security (%) 100 | 100 100 100 Level 1 . | . . . Level 2 . | . . . Level 3 . | . . . Level 4 . | . . . Level 5 . | . . . High Security . | . . . Max Security . | . . . Squads Dispatched 1 | . 1 . Investigation 1 | . 1 . Extermination . | . . . Reinforcement . | . . . Assault . | . . . Garrison . | . . . Intercept . | . . . Searches Triggered . | . . . Construction Impeded . | . . . Haulers Reinforced . | . . . Active Scanning Responses . | . . . Cargo Convoy Interrupts . | . . . Stealth | -11 -10 -9 --------- Run | Yrd Mat Mat Distress Signals . | . . . Communications Jammed . | . . . Distress Signals . | . . . Times Spotted 16 | . 13 3 Peak Tracking Total 8 | . 8 2 Tactical Retreats . | . . . Traps | -11 -10 -9 ------- Run | Yrd Mat Mat Traps Triggered 1 | . 1 . Indirectly . | . . . Trap Hack Attempts . | . . . Triggered . | . . . Disarmed . | . . . Reprogrammed . | . . . Reused . | . . . Traps Extracted . | . . . Installed . | . . . Triggered . | . . . Machines | -11 -10 -9 ---------- Run | Yrd Mat Mat Machines Disabled . | . . . Max in Single Turn . | . . . Machines Repaired . | . . . Machines Dismantled . | . . . Machines Sabotaged . | . . . Overloaded Fab Kills . | . . . Hacking | -11 -10 -9 --------- Run | Yrd Mat Mat Machines Accessed 1 | . . 1 Terminals . | . . . Fabricators . | . . . Repair Stations . | . . . Recycling Units . | . . . Scanalyzers 1 | . . 1 Garrison Access . | . . . Total Hacks 2 | . . 2 Successful 2 | . . 2 Failed . | . . . Catastrophic . | . . . Database Lockouts . | . . . Manual . | . . . Terminals . | . . . Fabricators . | . . . Repair Stations . | . . . Recycling Units . | . . . Scanalyzers 2 | . . 2 Garrison Access . | . . . Terminal Hacks . | . . . Fabricator Hacks . | . . . Repair Station Hacks . | . . . Recycling Unit Hacks . | . . . Scanalyzer 2 | . . 2 Insert Component 1 | . . 1 Analyze 1 | . . 1 Garrison Access Hacks . | . . . Unauthorized Hacks . | . . . Terminals . | . . . Fabricators . | . . . Repair Stations . | . . . Recycling Units . | . . . Scanalyzers . | . . . Garrison Access . | . . . Data Cores Recovered . | . . . Used . | . . . Hacking Detections . | . . . Full Trace Events . | . . . Feedback Events . | . . . Feedback Blocked . | . . . Robot Schematics Acquired . | . . . Robots Built . | . . . Authchips . | . . . Time . | . . . Total Robot Build Rating . | . . . Part Schematics Acquired 1 | . . 1 Parts Built . | . . . Authchips . | . . . Time . | . . . Total Part Build Rating . | . . . Parts Repaired . | . . . Time . | . . . Parts Recycled . | . . . Recycled Matter . | . . . Retrieved Matter . | . . . Retrieved Components . | . . . Parts Scanalyzed 1 | . . 1 Part Schematics Acquired 1 | . . 1 Parts Damaged . | . . . Bothacking | -11 -10 -9 ------------ Run | Yrd Mat Mat Used RIF Installer . | . . . Robots Hacked 1 | . 1 . Non-combat . | . . . Combat 1 | . 1 . Robot Hacks Applied 1 | . 1 . find_shortcuts 1 | . 1 . Relay Couplers Released . | . . . Fabnet Peak Effective % . | . . . Robots Rewired . | . . . Allies Hacked . | . . . Hacks Repelled . | . . . Allies | -11 -10 -9 -------- Run | Yrd Mat Mat Total Allies . | . . . Largest Group . | . . . Highest-Rated Group . | . . . Highest-Rated Ally . | . . . Total Orders . | . . . Ally Attacks . | . . . Total Damage . | . . . Kills . | . . . Allies Corrupted . | . . . Allies Melted . | . . . Intel | -11 -10 -9 ------- Run | Yrd Mat Mat Robot Analysis Total 3 | 2 1 . Derelict Logs Recovered . | . . . Drone Launches . | . . . Drone Recoveries . | . . . Exploration | -11 -10 -9 ------------- Run | Yrd Mat Mat Turns Passed 695 | 350 191 154 Spaces Moved 636 | 318 164 154 Core 52 | 41 7 4 Treads . | . . . Legs 84 | . 12 72 Wheels 500 | 277 145 78 Hover . | . . . Flight . | . . . Fastest Speed 50 | 50 50 50 Average Speed 82 | 76 81 97 Slowest Speed 120 | 80 120 120 Overloaded Moves . | . . . Propulsion Burnouts . | . . . Robots Hopped . | . . . Cave-ins Triggered . | . . . Exploration Rate (%) 17 | 17 24 11 Regions Visited 2 Branch Regions . Pre-discovered Areas . | . . . Known Exits Taken . | . . . Unknown Exits Taken 2 | 1 1 . Scrap Searched . | . . . Spaces Dug . | . . . Terrain Destroyed . | . . . Melee . | . . . Projectile . | . . . AOE . | . . . Terrain Rammed . | . . . Walls Destroyed . | . . . Machines Disabled . | . . . Actions | -11 -10 -9 --------- Run | Yrd Mat Mat Total 771 | 419 195 157 Wait 3 | . . 3 Move 634 | 317 163 154 Hop . | . . . Pick Up 3 | . 3 . Fast Attach . | . . . Attach . | . . . Detach . | . . . Swap . | . . . Drop 2 | . 2 . Fire 29 | 2 27 . Melee . | . . . Ram . | . . . Kick . | . . . Crush . | . . . Escape Stasis . | . . . Rewire . | . . . Trap . | . . . Miscellaneous 100 | 100 . . Route ------- -11/Scrapyard -10/Materials -9/Materials History --------- Turn | Location | Event 5 | -11/Scrapyard | Discovered new exit (range 15) 351 | -11/Scrapyard | Entered Materials 472 | -10/Materials | Discovered new exit (range 4) 509 | -10/Materials | Core integrity fell below 50% 542 | -10/Materials | Entered another Materials area 696 | -9/Materials | Self-destructed Last Messages --------------- 00598_ Connecting with Scanalyzer... 00598_ Current location identified: Materials >>Insert(Lgt. Assault Rifle) Scanning Lgt. Assault Rifle... Ready to analyze. >>Scanalyze Scanning: Lgt. Assault Rifle... Schematic downloaded. 00611_ K-01 Serf collects debris. 00628_ K-01 Serf cleans the Material Compactor. 00629_ Released control of G-34 Mercenary. 00630_ G-34 Mercenary reactivates. 00631_ Took control of K-01 Serf. 00633_ Cleaned Material Compactor. 00637_ Collected debris. 00665_ Cleaned Electrolysis Chamber. 00672_ Wheel destroyed. 00675_ K-01 Serf collects debris. 00676_ Collected debris. 00696_ K-01 Serf collects debris. Map ----- +----------------------------------------------------+ | ???????????????????????????????????? | | ???????????????????????????????????? | | ???????????????????????????????????? | | ???????????????????????????????????? | | ???????????????????????????????????? | | ???????????????????????????????????? | | ???????????????????????????????????? | | ???????????????????????????????????? | | ???????????????????????????????????? | | ???????????????????????????????????? | | ???????????????????????????????????? | | ???????????????????????????????????? | | ???????????????????????????????????? | | ???????????????????????????????????? | | ???????????????????????????????????? | | ??????????????????? ?????????????? | | ??????????????????# #############? | | ??????????????????# # #? | | ??????????????????# Y #? | | ??????????????????# # #? | | ??????????????????# # ?? | | ??????????????????# # k ???? | | ??????????????????# # ?????? | | ??????????????????# # ???????? | | ??????????????????# #?#/#????????? | | ??????????????????# ###k##???????? | | ??????????????????# #???????? | | ??????????????????# #???????? | | ??????????????????# #???????? | | ??????????????????# #### #???????? | | ??????????????????# #???+#???????? | | ??????????????????# #????????????? | | ??????????????????# #????????????? | | ??????????????????# #????????????? | | ??????????????????# #????????????? | | ??????????????????# #????????????? | | ??????????????????# #????????????? | | ??????????????????# #????????????? | | ??????????????????# +????????????? | | ??????????????????# #????????????? | | ??????????????????# ########?????? | | ??????????????????# # """ #?????? | | ??????????????????# # """ #?????? | | ???????????######## + """ #?????? | | ???????????# # # #?????? | | ???????????# # # #?????? | | ??#######??# # # #?????? | | ??# #??# # ##########???? | | ??# * #??# / # #???? | | ??# #??# # # #???? | +----------------------------------------------------+ Best States ------------- Heat Dissipation 28 Energy Generation 15 Energy Capacity 200 Matter Stores 75 Matter Capacity 125 Sight Range 16 Terrain Scan Range 16 Terrain Scan Density 10 Evasion (%) 55 Item Schematics ----------------- Lgt. Assault Rifle | -9/Materials | Scanalyzed Robot Schematics ------------------ None Fabricated ------------ Nothing Alien Tech Used ----------------- None Achievements -------------- None Challenges ------------ None Polymind | -11 -10 -9 ---------- Run | Yrd Mat Mat Hosts 4 | 2 1 1 Combat Hostiles 1 | . 1 . Allies . | . . . Unique Host Classes 3 | 2 1 . Average Host Suspicion 32 | 5 65 49 Unsuspicious Activity 813 | 660 81 72 Returns to Shadow . | . . . Fuzzy Dispatches . | . . . Protomatter Created 26 | . 26 . Used 30 | 10 15 5 Decayed . | . . . Highest Spend 15 | 5 15 5 Top 5 Hosts by Kills: G-34 Mercenary (-10/Materials: 5) Game ------ Seed VisualAluminumMantle Manual? 0 Play Time 00:08:20 Cumulative 21.0 hours Start 2025.03.08 @ 22:24:07 End 2025.03.08 @ 22:32:10 Sessions 1 Manual Loads 0 Difficulty Rogue Special Mode Winter2022/Polymind Game No. 24 Rogue 22 Adventurer 2 Explorer 0 Win Type - Total 0 Types 0/0/0/0/0/0/0/0/0 Lore% 10 Gallery% 21 Achievement% 22 Wizard Run 0 Options --------- Layout 0 ASCII 0 Keyboard 0 Movement Arrows Keybinds 0 Fullscreen 1 Font 18/SmallcapsGlow Map View 76x50 Zoom Use 0% Tactical HUD 1 Map Filters NONE Filters NONE Steam 1 RUN: ba905b32-8305-4de5-9913-bfb5a1eb1468